fUST/lending_fUST_20240428
["ID","MTS","AMOUNT","RATE_DAILY","PERIOD"]
[323770239,1714272431108,-300.0,0.00025492,2]
[323770240,1714272431130,-1149.02317463,0.00025492,2]
[323770241,1714272441087,-237.01850522,0.00025492,2]
[323770242,1714272447094,-159.13598878,0.00024932,2]
[323770243,1714272449120,-161.86401122,0.00024932,2]
[323770244,1714272449141,-6.34409223,0.00025,2]
[323770265,1714272638006,-314.65590777,0.00025,2]
[323770266,1714272638016,-1563.77717657,0.00025,2]
[323770267,1714272638026,-200.0,0.00025,2]
[323770268,1714272638036,-154.79876161,0.00025,2]
[323770270,1714272638046,-1000.0,0.00025,2]
[323770273,1714272638056,-1000.0,0.00025,2]
[323770276,1714272638067,-1891.26101564,0.00025392,2]
[323770279,1714272638076,-305.93055219,0.00025393,2]
[323770281,1714272638086,-756.6491368,0.00025492,2]
[323770283,1714272638095,-1297.45590377,0.00025493,2]
[323770284,1714272638104,-694.73759735,0.00025494,2]
[323770285,1714272638114,-171.320346,0.00025523,2]
[323770286,1714272638124,-11467.20563788,0.00025523,2]
[323770426,1714272643111,-477.71545922,0.00025523,2]
[323770427,1714272643121,-321.0,0.0002589,2]
[323770428,1714272643130,-1682.398063,0.00026599,2]
[323770429,1714272643139,-153.0,0.000266,2]
[323770430,1714272643150,-150.15871977,0.00026717,2]
[323770431,1714272643164,-381.0,0.000268,2]
[323770432,1714272643173,-10746.3,0.00026817,3]
[323770433,1714272643183,-20492.49,0.00026817,3]
[323770434,1714272643192,-17077.07,0.00026817,3]
[323770435,1714272643202,-1575.6250749,0.00026826,2]
[323770436,1714272643212,-2100.22968197,0.00026826,2]
[323770437,1714272643221,-1387.2749591,0.00026827,2]
[323770438,1714272643230,-500.0,0.00026827,2]
[323770439,1714272643241,-122733.71487431,0.00026827,2]
[323770440,1714272643251,-167.07685195,0.00026838,2]
[323770441,1714272643260,-169.13597857,0.00026845,2]
[323770442,1714272643269,-192.85533644,0.00026845,2]
[323770443,1714272643279,-941.47926265,0.00026846,2]
[323770444,1714272643288,-620.50724733,0.00026847,2]
[323770446,1714272643298,-236.3843144,0.00026847,2]
[323770448,1714272643307,-1884.08049156,0.00026847,2]
[323770449,1714272643316,-408.75551334,0.00026848,2]
[323770450,1714272643326,-150.15871977,0.00026851,2]
[323770451,1714272643335,-2623.56842463,0.00026857,2]
[323770452,1714272643344,-313.53246583,0.00026857,2]
[323770453,1714272643353,-158.81572532,0.00026858,2]
[323770454,1714272643362,-244.92832755,0.00026858,2]
[323770455,1714272643371,-660.19206649,0.00026858,2]
[323770456,1714272643380,-212.23233169,0.00026865,2]
[323770457,1714272643389,-250.0186683,0.00026868,2]
[323770458,1714272643399,-999.0,0.00026869,2]
[323770459,1714272643408,-40276.0,0.0002687,2]
[323770460,1714272643417,-681.47788523,0.00026879,7]
[323770461,1714272643426,-591.6655972,0.00026887,2]
[323770462,1714272643435,-272.70165246,0.00026897,2]
[323770463,1714272643444,-1490.8786078,0.00026897,2]
[323770464,1714272643453,-3049.13524062,0.00026898,2]
[323770465,1714272643462,-1015.64247066,0.00026899,2]
[323770466,1714272643471,-153.0,0.000269,2]
[323770467,1714272643480,-44444.0,0.000269,3]
[323770468,1714272643490,-500.0,0.00026951,2]
[323770469,1714272643500,-154.81422293,0.00026986,2]
[323770470,1714272643509,-154.81422293,0.00026986,2]
[323770471,1714272643519,-182.61775399,0.00026987,2]
[323770472,1714272643528,-298.95322926,0.00026987,2]
[323770473,1714272643537,-564.78311334,0.00026987,2]
[323770474,1714272643546,-154.81422293,0.00026987,2]
[323770475,1714272643556,-154.81422293,0.00026987,2]
[323770476,1714272643565,-154.81422293,0.00026987,2]
[323770477,1714272643574,-603.57234398,0.00026987,2]
[323770478,1714272643583,-154.93797531,0.00026988,2]
[323770479,1714272643592,-21563.33778927,0.00026998,2]
[323770480,1714272643601,-23205.65387414,0.00027,7]
[323770504,1714273531070,-308.03581742,0.00022466,2]
[323770505,1714273553105,-343.59281033,0.00022466,2]
[323770506,1714273625091,-98.37137225,0.00022466,2]
[323770507,1714273625111,-162.907156,0.00022466,2]
[323770508,1714273625131,-36.63593305,0.00022466,2]
[323770511,1714273637097,-1527.14124352,0.00022466,2]
[323770512,1714273637120,-200.0,0.00022466,2]
[323770513,1714273637140,-154.79876161,0.00022466,2]
[323770514,1714273637160,-1000.0,0.00022466,2]
[323770515,1714273637180,-1000.0,0.00022466,2]
[323770516,1714273637202,-3304.08508147,0.0002295,5]
[323770517,1714273637223,-300.0,0.00024398,2]
[323770518,1714273637246,-300.0,0.00024398,2]
[323770519,1714273637266,-150.70326798,0.00024399,2]
[323770520,1714273637413,-200.0,0.00024932,2]
[323770521,1714273637437,-200.0,0.00025,2]
[323770522,1714273637462,-171.320346,0.00025016,2]
[323770523,1714273637487,-171.6043851,0.00025237,2]
[323770524,1714273637507,-150.0,0.00025399,2]
[323770525,1714273637528,-200.0,0.0002589,2]
[323770526,1714273637552,-150.0,0.00026399,2]
[323770527,1714273637572,-500.0,0.00026599,2]
[323770528,1714273637594,-420.0,0.00026838,2]
[323770529,1714273637614,-202.76116895,0.0002698,2]
[323770530,1714273637634,-110.02959681,0.00026988,2]
[323770531,1714273759093,-286.73477913,0.00022466,2]
[323770532,1714273759113,-335.55880377,0.0002294,5]
[323770533,1714273780971,130.54595203,0.0002294,2]
[323770568,1714273838205,-479.64043877,0.0002294,2]
[323770931,1714274750113,-768.69660055,0.00014721,2]
[323770932,1714274750134,-875.40390416,0.00014722,2]
[323770933,1714274751113,-168.50358174,0.00014722,2]
[323770934,1714274839166,-993.03286136,0.00014719,2]
[323770937,1714274948100,-1637.2332727,0.00014718,2]
[323770938,1714274948120,-318.1779716,0.00014719,2]
[323770939,1714274948139,-291.61970245,0.0001472,2]
[323770940,1714274948159,-291.61970245,0.0001472,2]
[323770941,1714274948178,-291.61970245,0.0001472,2]
[323770942,1714274948198,-291.61970245,0.0001472,2]
[323770943,1714274948218,-300.0,0.00014728,2]
[323770944,1714274948238,-420.0,0.00016123,2]
[323770945,1714274948259,-587.0,0.00017651,2]
[323770946,1714274948278,-412.98789504,0.000189,2]
[323770947,1714274948298,-523.0,0.00019323,2]
[323770948,1714274948317,-161.291848,0.00020908,2]
[323770949,1714274948337,-456.11034318,0.00022009,5]
[323770950,1714274948356,-1201.16467041,0.00022355,2]
[323770951,1714274948375,-300.0,0.00022457,2]
[323770952,1714274948395,-1355.3408655,0.00022458,2]
[323770953,1714274948414,-261.278532,0.00022466,2]
[323770954,1714274948435,-744.122482,0.00022466,2]
[323770955,1714274948455,-2879.6005397,0.00022815,2]
[323770956,1714274948476,-389.8136092,0.0002294,2]
[323770957,1714274948495,-1563.77717657,0.0002294,2]
[323770958,1714274948516,-200.0,0.0002294,2]
[323770959,1714274948537,-154.81422293,0.0002294,2]
[323770960,1714274948556,-412.98789504,0.000239,2]
[323770961,1714274948576,-500.0,0.0002403,2]
[323770962,1714274948595,-66.34621163,0.0002403,2]
[323770963,1714274965132,197.96,0.00022,2]
[323770964,1714274974081,-802.04,0.00022,2]
[323770965,1714274985413,43.1440609,0.00019,2]
[323771101,1714275038497,-291.61970245,0.00018999,2]
[323771102,1714275038507,-156.8559391,0.00019,2]
[323771103,1714275038516,-1311.21083296,0.00019875,2]
[323771104,1714275038525,-261.51840549,0.00019876,2]
[323771142,1714275046460,-658.63493758,0.00019875,2]
[323771143,1714275046469,-124.27048877,0.00019876,2]
[323771144,1714275068694,3133.89045865,0.00019874,7]
[323771145,1714275088350,1125.26722848,0.00019874,7]
[323771149,1714275930132,-565.82496346,0.00014702,2]
[323771150,1714275930168,-117.31588051,0.00014702,2]
[323771151,1714275930187,-291.61970245,0.00014702,2]
[323771152,1714275930210,-471.00932969,0.00014703,2]
[323771153,1714275940742,212.22553252,0.000147,2]
[323771154,1714275944322,884.39174431,0.000147,2]
[323771155,1714276025107,-154.79876161,0.00014702,2]
[323771156,1714276025128,-1276.27599052,0.00014703,2]
[323771157,1714276025149,-217.12664904,0.00014728,2]
[323771158,1714276031089,-82.87335096,0.00014728,2]
[323771159,1714276031111,-154.14515426,0.00016201,2]
[323771160,1714276038094,-168.20810345,0.00016201,2]
[323771161,1714276045159,-97.64674229,0.00016201,2]
[323771162,1714276045181,-587.0,0.00017821,2]
[323771163,1714276045201,-603.65268039,0.000185,2]
[323771164,1714276045221,-160.72375195,0.00018752,2]
[323771165,1714276046088,-5.94291405,0.00018752,2]
[323771166,1714276046108,-153.19307473,0.00018782,2]
[323771167,1714276148107,-683.14084397,0.00018897,2]
[323771168,1714276148128,-243.15639328,0.000189,2]
[323771169,1714276148149,-157.5449421,0.00019071,2]
[323771170,1714276148169,-300.0,0.00019144,2]
[323771171,1714276148188,-200.0,0.00019145,2]
[323771172,1714276148209,-212.14600576,0.00019145,2]
[323771173,1714276148229,-903.13955115,0.00019145,2]
[323771174,1714276148249,-605.03397323,0.00019145,2]
[323771175,1714276148272,-257.20127939,0.00019145,2]
[323771176,1714276148292,-300.0,0.00019145,2]
[323771177,1714276148313,-24900.0,0.00019147,2]
[323771178,1714276148332,-291.84317246,0.00019394,2]
[323771179,1714276148353,-160.179386,0.00019494,2]
[323771180,1714276148372,-303.771855,0.00019874,2]
[323771181,1714276148393,-200.0,0.00019874,2]
[323771182,1714276148413,-241.6470421,0.0002,2]
[323771183,1714276148433,-150.0,0.0002019,3]
[323771184,1714276148455,-150.0,0.0002081,3]
[323771185,1714276148475,-300.0,0.00020864,2]
[323771186,1714276148497,-420.0,0.0002106,2]
[323771187,1714276148516,-150.0,0.0002143,3]
[323771188,1714276148535,-430.99951936,0.00022,2]
[323771189,1714276148553,-1563.77717657,0.00022,2]
[323771190,1714276148572,-291.84317245,0.00022558,2]
[323771191,1714276148591,-713.94452202,0.00023,2]
[323771192,1714276148611,-404.43145165,0.00023165,2]
[323771193,1714276161122,-712.5,0.00022466,2]
[323771194,1714276161142,-182.56854835,0.00023165,2]
[323771195,1714276161162,-243.15639328,0.000239,2]
[323771196,1714276177514,84.63299941,0.0002,2]
[323771233,1714276232532,-1083.33243758,0.0002,2]
[323771477,1714276240746,-395.81173958,0.0002,2]
[323771479,1714276240755,-200.0,0.0002,2]
[323771481,1714276240764,-165.28713684,0.0002403,2]
[323771483,1714276240774,-303.69719821,0.00024454,2]
[323771485,1714276240783,-532.27346213,0.00024455,2]
[323771487,1714276240792,-126.19775591,0.00025,2]
[323771712,1714276243970,-898.39954919,0.00025,2]
[323771748,1714276246835,-2697.3896014,0.00025,2]
[323771749,1714276246844,-505.3603986,0.00025526,2]
[323771756,1714277131144,-388.27519902,0.00017579,2]
[323771757,1714277156118,-294.86564495,0.00017579,2]
[323771758,1714277156137,-704.65426273,0.0001758,2]
[323771759,1714277252088,-297.9144613,0.0001758,2]
[323771760,1714277347117,-300.0,0.00014728,2]
[323771761,1714277347138,-420.0,0.00016201,2]
[323771762,1714277347157,-1804.13041597,0.0001758,2]
[323771763,1714277347177,-291.61970245,0.00017582,2]
[323771764,1714277347195,-617.5975528,0.000176,2]
[323771765,1714277347214,-338.06111847,0.00017821,2]
[323771766,1714277347247,-170.93888153,0.00017821,2]
[323771767,1714277347267,-200.0,0.0002,2]
[323771768,1714277347287,-286.73477913,0.0002,2]
[323771769,1714277347306,-335.55880377,0.0002,5]
[323771770,1714277347328,-241.6470421,0.0002,2]
[323771771,1714277347349,-162.19275,0.00022466,2]
[323771772,1714277347370,-182.581431,0.00022466,2]
[323771773,1714277347389,-150.0,0.000239,2]
[323771774,1714277347411,-161.291848,0.00023909,2]
[323771786,1714277432768,-683.14084397,0.00024307,2]
[323771788,1714277432778,-2626.05915602,0.00024308,2]
[323772173,1714277444082,-111.05776752,0.00024308,2]
[323772212,1714277460466,1000.0,0.00023909,2]
[323772213,1714277461810,1563.77717657,0.00023909,2]
[323772214,1714277463119,1000.0,0.00023909,2]
[323772215,1714277945770,500.0,0.0002,30]
[323772216,1714278007223,-1000.0,0.00027,120]
[323772217,1714278332251,-241.6470421,0.0002219,2]
[323772218,1714278332273,-2090.32651348,0.0002219,2]
[323772219,1714278561115,-683.14084397,0.00022189,2]
[323772220,1714278561137,-1000.0,0.0002219,2]
[323772221,1714278561158,-2806.69914,0.00022465,2]
[323772222,1714278561178,-706.916357,0.00022466,2]
[323772223,1714278561198,-1000.0,0.000238,2]
[323772224,1714278561220,-155.29632473,0.000239,2]
[323772225,1714278561242,-300.0,0.00023908,2]
[323772226,1714278561263,-3491.03617777,0.00023909,2]
[323772227,1714278561283,-154.10904157,0.00023909,2]
[323772228,1714278569102,-45.89095843,0.00023909,2]
[323772229,1714278569122,-169.06832897,0.00024289,5]
[323772230,1714278575600,200.0,0.0002219,2]
[323772560,1714278643381,-599.62827158,0.00024289,5]
[323772561,1714278643390,-892.71061538,0.00024308,2]
[323772562,1714278643400,-166.666666,0.0002451,2]
[323772563,1714278643410,-2165.5863733,0.00024614,2]
[323772564,1714278643419,-1000.0,0.000248,3]
[323772565,1714278643429,-154.8338744,0.000248,2]
[323772566,1714278643438,-683.14084397,0.00024899,2]
[323772567,1714278643447,-150.0,0.000249,2]
[323772568,1714278643457,-153.0,0.00024904,2]
[323772569,1714278643467,-153.0,0.00024952,2]
[323772570,1714278643476,-222.5,0.00025,2]
[323772571,1714278643485,-500.0,0.00025,20]
[323772572,1714278643494,-500.0,0.00025,20]
[323772573,1714278643504,-160.0,0.00025033,3]
[323772574,1714278643514,-153.0,0.00025104,2]
[323772575,1714278643523,-160.0,0.00025132,4]
[323772576,1714278643533,-160.0,0.00025231,5]
[323772577,1714278643543,-157.22174744,0.0002527,2]
[323772578,1714278643553,-160.0,0.0002533,6]
[323772579,1714278643563,-150.0,0.00025398,2]
[323772580,1714278643573,-160.0,0.00025429,7]
[323772581,1714278643584,-1321.98994378,0.00025489,2]
[323772591,1714279541164,-1109.73602872,0.00022454,2]
[323772592,1714279629113,-154.79876161,0.00014727,2]
[323772593,1714279629133,-683.14084397,0.00014727,2]
[323772594,1714279629265,-611.08356905,0.00022465,2]
[323772595,1714279632086,-237.01850522,0.00022465,2]
[323772596,1714279642098,-1000.0,0.00022454,2]
[323772597,1714279642120,-648.20140117,0.00022465,2]
[323772598,1714279650106,-168.20810345,0.00022465,2]
[323772599,1714279751089,-1000.0,0.00022454,2]
[323772600,1714279751109,-1142.18756111,0.00022465,2]
[323772601,1714279751127,-676.875,0.00022466,2]
[323772602,1714279751144,-167.503501,0.00022466,2]
[323773186,1714279843132,-330.7036142,0.00024416,2]
[323773189,1714279846026,-352.43722977,0.00024416,2]
[323773191,1714279846036,-154.79876161,0.00024417,2]
[323773192,1714279846046,-2806.69914,0.00024418,2]
[323773193,1714279846056,-160.723752,0.0002442,2]
[323773194,1714279846064,-1000.0,0.000252,3]
[323773195,1714279846073,-188.96899093,0.00025382,2]
[323773196,1714279846084,-202.76116895,0.00025478,2]
[323773197,1714279846094,-300.0,0.00025485,2]
[323773198,1714279846103,-154.79876161,0.00025486,2]
[323773199,1714279846112,-1276.27599052,0.00025486,2]
[323773200,1714279846121,-603.65268039,0.00025487,2]
[323773201,1714279846130,-11691.75721652,0.00025488,2]
[323773202,1714279860596,169.81603993,0.00014728,2]
[323773203,1714279860616,130.18396007,0.00014728,2]
[323773204,1714279861179,84.56448593,0.00016201,2]
[323773207,1714280742145,-1119.52011555,0.00014726,2]
[323773208,1714280829109,-297.9144613,0.00014725,2]
[323773209,1714280947126,-322.71075184,0.00014724,2]
[323773210,1714280947148,-385.22638267,0.00014725,2]
[323773211,1714280947168,-1687.17902445,0.00014726,2]
[323773212,1714280947216,-300.0,0.00014728,2]
[323773213,1714280947239,-420.0,0.00016201,2]
[323773214,1714280947260,-376.0,0.00017821,2]
[323773215,1714280947282,-150.0,0.000189,2]
[323773216,1714280947302,-200.0,0.00019,2]
[323773217,1714280947323,-24890.0,0.000193,2]
[323773218,1714280947342,-174.09349884,0.000199,2]
[323773219,1714280947362,-67400.84108775,0.0002,2]
[323773220,1714280947384,-335.55880377,0.0002,5]
[323773221,1714280947405,-241.6470421,0.0002,2]
[323773222,1714280947427,-169.135525,0.0002162,2]
[323773223,1714280947447,-159.8429,0.00022466,2]
[323773224,1714280947466,-671.570539,0.00022466,2]
[323773225,1714280947486,-217.2,0.00023373,3]
[323773226,1714280947507,-68170.32180852,0.00023383,2]
[323773227,1714280953139,-174.09349881,0.00021167,2]
[323773228,1714280953166,-174.09349881,0.00022433,2]
[323773229,1714280953209,-108842.02497352,0.00023383,2]
[323773230,1714280959092,-26512.50710051,0.00023383,2]
[323773231,1714280961109,-183.23202697,0.0002,2]
[323773232,1714280961129,-78999.62575511,0.00023383,2]
[323773326,1714281038280,-322.71075184,0.00023298,2]
[323773328,1714281038289,-678.08513816,0.00023299,2]
[323773631,1714281041616,-2128.61400184,0.00023299,2]
[323773633,1714281041626,-445.31033883,0.00023299,2]
[323773969,1714281046272,-237.83050514,0.00023299,2]
[323773971,1714281046282,-1954.0,0.000233,3]
[323773973,1714281046291,-28040.56203273,0.00023382,2]
[323773975,1714281046301,-103714.77430349,0.00023383,2]
[323773977,1714281046310,-154.79876161,0.00023383,2]
[323773979,1714281046320,-1500.0,0.00023383,2]
[323773980,1714281046329,-1563.77717657,0.00023383,2]
[323773983,1714281046338,-174.09349881,0.000237,2]
[323773985,1714281046348,-1000.0,0.000238,2]
[323773987,1714281046357,-150.0,0.000239,2]
[323773989,1714281046366,-2222.0,0.0002444,2]
[323773991,1714281046375,-151.0,0.0002444,2]
[323773993,1714281046384,-152.023417,0.0002444,2]
[323773995,1714281046394,-736.103207,0.0002444,2]
[323773997,1714281046402,-736.103207,0.0002444,2]
[323773999,1714281046411,-151.0,0.0002444,2]
[323774001,1714281046421,-207.188372,0.0002444,2]
[323774003,1714281046430,-207.188372,0.0002444,2]
[323774005,1714281046440,-151.0,0.0002444,2]
[323774007,1714281046450,-157.960431,0.0002444,2]
[323774009,1714281046464,-157.037208,0.0002444,2]
[323774011,1714281046473,-151.0,0.0002444,2]
[323774013,1714281046482,-151.0,0.0002444,2]
[323774015,1714281046491,-151.0,0.0002444,2]
[323774017,1714281046501,-151.0,0.0002444,2]
[323774019,1714281046510,-151.0,0.0002444,2]
[323774021,1714281046519,-151.0,0.0002444,2]
[323774023,1714281046528,-154.744556,0.0002444,2]
[323774025,1714281046537,-151.0,0.0002444,2]
[323774027,1714281046546,-151.0,0.0002444,2]
[323774029,1714281046555,-179.437006,0.0002444,2]
[323774031,1714281046565,-151.0,0.0002444,2]
[323774033,1714281046574,-155.095199,0.0002444,2]
[323774035,1714281046583,-1204.548229,0.0002444,2]
[323774037,1714281046592,-1204.548229,0.0002444,2]
[323774039,1714281046602,-1204.548229,0.0002444,2]
[323774041,1714281046614,-1204.548229,0.0002444,2]
[323774043,1714281046622,-1204.548229,0.0002444,2]
[323774045,1714281046632,-1204.548229,0.0002444,2]
[323774047,1714281046641,-151.0,0.0002444,2]
[323774049,1714281046650,-151.0,0.0002444,2]
[323774051,1714281046659,-151.0,0.0002444,2]
[323774053,1714281046668,-234.369174,0.0002444,2]
[323774055,1714281046677,-234.369174,0.0002444,2]
[323774057,1714281046685,-234.369174,0.0002444,2]
[323774059,1714281046694,-234.369174,0.0002444,2]
[323774061,1714281046702,-234.369174,0.0002444,2]
[323774063,1714281046712,-234.369174,0.0002444,2]
[323774065,1714281046721,-234.369174,0.0002444,2]
[323774067,1714281046730,-234.369174,0.0002444,2]
[323774069,1714281046739,-151.0,0.0002444,2]
[323774071,1714281046748,-151.0,0.0002444,2]
[323774073,1714281046760,-151.0,0.0002444,2]
[323774075,1714281046768,-153.190377,0.0002444,2]
[323774077,1714281046777,-151.0,0.0002444,2]
[323774078,1714281046786,-151.0,0.0002444,2]
[323774080,1714281046795,-2274.45717604,0.00024452,3]
[323774083,1714281046806,-151.0,0.00024452,2]
[323774085,1714281046816,-151.0,0.00024452,2]
[323774087,1714281046827,-152.543935,0.00024552,2]
[323774088,1714281046839,-207.188372,0.00024552,2]
[323774090,1714281046849,-207.188372,0.00024552,2]
[323774092,1714281046858,-238.314011,0.00024552,2]
[323774095,1714281046868,-151.0,0.00024552,2]
[323774097,1714281046877,-1204.548229,0.00024552,2]
[323774098,1714281046886,-1204.548229,0.00024552,2]
[323774099,1714281046896,-1204.548229,0.00024552,2]
[323774100,1714281046904,-1204.548229,0.00024552,2]
[323774101,1714281046914,-257.831241,0.00024552,2]
[323774102,1714281046923,-234.369174,0.00024552,2]
[323774103,1714281046932,-234.369174,0.00024552,2]
[323774104,1714281046941,-234.369174,0.00024552,2]
[323774105,1714281046951,-234.369174,0.00024552,2]
[323774106,1714281046961,-151.0,0.00024552,2]
[323774107,1714281046970,-214.800211,0.00024552,2]
[323774108,1714281046978,-151.0,0.00024552,2]
[323774110,1714281046987,-151.0,0.00024552,2]
[323774111,1714281046996,-151.0,0.00024552,2]
[323774112,1714281047005,-234.369174,0.00024657,2]
[323774113,1714281047014,-234.369174,0.00024657,2]
[323774114,1714281047023,-999.0,0.00024657,2]
[323774115,1714281047032,-203.6873974,0.00024678,2]
[323774116,1714281047041,-151.0,0.00024878,2]
[323774117,1714281047050,-736.103207,0.00024878,2]
[323774118,1714281047059,-736.103207,0.00024878,2]
[323774119,1714281047069,-151.0,0.00024878,2]
[323774120,1714281047079,-1204.548229,0.00024878,2]
[323774121,1714281047088,-1204.548229,0.00024878,2]
[323774122,1714281047098,-234.369174,0.00024878,2]
[323774123,1714281047107,-234.369174,0.00024878,2]
[323774124,1714281047117,-178.025172,0.00024878,2]
[323774125,1714281047130,-203.6873974,0.00024878,2]
[323774126,1714281047144,-203.6873974,0.00024878,2]
[323774127,1714281047154,-203.6873974,0.00024878,2]
[323774128,1714281047163,-522.3101577,0.00024878,2]
[323774129,1714281047172,-207.88908492,0.00025,2]
[323774130,1714281047181,-151.0,0.00025,2]
[323774131,1714281047191,-1204.548229,0.00025,2]
[323774132,1714281047200,-1204.548229,0.00025,2]
[323774133,1714281047209,-234.369174,0.00025,2]
[323774134,1714281047219,-234.369174,0.00025,2]
[323774135,1714281047230,-381.0,0.000254,2]
[323774136,1714281047240,-1038.335179,0.000254,2]
[323774137,1714281047249,-201.03951718,0.00025486,2]
[323774138,1714281047258,-151.0,0.00025486,2]
[323774139,1714281047267,-736.103207,0.00025486,2]
[323774140,1714281047277,-736.103207,0.00025486,2]
[323774141,1714281047286,-207.188372,0.00025486,2]
[323774142,1714281047295,-207.188372,0.00025486,2]
[323774143,1714281047306,-207.188372,0.00025486,2]
[323774147,1714281047417,-207.188372,0.00025486,2]
[323774149,1714281047427,-151.0,0.00025486,2]
[323774151,1714281047436,-151.0,0.00025486,2]
[323774152,1714281047445,-1204.548229,0.00025486,2]
[323774153,1714281047453,-1204.548229,0.00025486,2]
[323774154,1714281047462,-1204.548229,0.00025486,2]
[323774155,1714281047471,-1204.548229,0.00025486,2]
[323774156,1714281047480,-1204.548229,0.00025486,2]
[323774157,1714281047490,-1204.548224,0.00025486,2]
[323774158,1714281047499,-234.369174,0.00025486,2]
[323774159,1714281047508,-234.369182,0.00025486,2]
[323774160,1714281047517,-500.0,0.00025487,2]
[323774161,1714281047527,-756.6491368,0.00025489,2]
[323774162,1714281047536,-181.020507,0.00025489,2]
[323774163,1714281047546,-736.103207,0.00025489,2]
[323774164,1714281047555,-736.103207,0.00025489,2]
[323774165,1714281047564,-207.188372,0.00025489,2]
[323774166,1714281047573,-207.188372,0.00025489,2]
[323774167,1714281047583,-151.0,0.00025489,2]
[323774168,1714281047591,-151.0,0.00025489,2]
[323774169,1714281047602,-203.0,0.000255,2]
[323774171,1714281047611,-203.6873974,0.000255,2]
[323774173,1714281047620,-736.103207,0.000255,2]
[323774175,1714281047629,-736.103207,0.000255,2]
[323774177,1714281047638,-207.188372,0.000255,2]
[323774178,1714281047647,-207.188372,0.000255,2]
[323774180,1714281047656,-207.188372,0.000255,2]
[323774182,1714281047667,-207.188372,0.000255,2]
[323774183,1714281047677,-321.05618943,0.00025526,2]
[323774184,1714281047686,-736.103207,0.00025526,2]
[323774185,1714281047695,-736.103207,0.00025526,2]
[323774187,1714281047704,-207.188372,0.00025526,2]
[323774189,1714281047713,-207.188372,0.00025526,2]
[323774191,1714281047721,-160.0,0.00025528,8]
[323774193,1714281047730,-160.0,0.00025626,9]
[323774195,1714281047739,-175.054196,0.00025627,2]
[323774197,1714281047748,-175.054196,0.00025627,2]
[323774199,1714281047763,-160.0,0.00025725,10]
[323774201,1714281047774,-1024.64975793,0.00025753,4]
[323774203,1714281047783,-1000.0,0.000258,4]
[323774205,1714281047793,-14465.99,0.000258,2]
[323774207,1714281047803,-736.103207,0.000258,2]
[323774210,1714281047813,-736.103207,0.000258,2]
[323774211,1714281047822,-736.103207,0.000258,2]
[323774213,1714281047833,-736.103207,0.000258,2]
[323774214,1714281047842,-736.103207,0.000258,2]
[323774215,1714281047852,-736.103207,0.000258,2]
[323774216,1714281047862,-207.188372,0.000258,2]
[323774217,1714281047871,-207.188372,0.000258,2]
[323774218,1714281047880,-207.188372,0.000258,2]
[323774219,1714281047890,-207.188377,0.000258,2]
[323774220,1714281047899,-175.054196,0.000258,2]
[323774221,1714281047908,-175.054196,0.000258,2]
[323774222,1714281047917,-160.0,0.00025824,11]
[323774223,1714281047928,-160.0,0.00025923,12]
[323774224,1714281047937,-693.18891974,0.00026,2]
[323774225,1714281047947,-14465.99,0.00026,2]
[323774226,1714281047957,-150.0,0.00026,7]
[323774227,1714281047967,-736.103207,0.00026,2]
[323774228,1714281047977,-736.1032,0.00026,2]
[323774229,1714281047987,-160.0,0.00026022,13]
[323774230,1714281047996,-160.0,0.00026121,14]
[323774231,1714281048006,-160.0,0.0002622,15]
[323774232,1714281048016,-160.0,0.00026319,16]
[323774233,1714281048025,-160.0,0.00026418,17]
[323774234,1714281048035,-14465.99,0.000265,2]
[323774235,1714281048044,-175.054196,0.000265,2]
[323774236,1714281048054,-175.054196,0.000265,2]
[323774237,1714281048064,-160.0,0.00026517,18]